[Event "76th Montenegro Championship 2024"]
[Site "Podgorica"]
[Date "2024.02.10"]
[Round "5.15"]
[White "Scekic, Veljko"]
[Black "Petrovic, Slavko"]
[Result "1/2-1/2"]
[ECO "B88"]
[WhiteElo "2206"]
[BlackElo "1836"]
[Annotator "NA RC"]
[PlyCount "73"]
[EventDate "2024.02.06"]
[EventType "swiss"]
[EventCountry "MNE"]
[SourceTitle "playchess.com"]
[Source "ChessBase"]
[SourceQuality "1"]
[TimeControl "40/5400+30:1800+30"]

1. e4 {[%emt 0:00:08]} c5 {[%emt 0:03:26]} 2. Nf3 {[%emt 0:00:09]} Nc6 {[%emt 0:00:20]} 3. d4 {[%emt 0:00:06]} cxd4 {[%emt 0:00:08]} 4. Nxd4 {[%emt 0:00:07]} Nf6 {[%emt 0:00:48]} 5. Nc3 {[%emt 0:00:29]} d6 {[%emt 0:00:13]} 6. Bc4 {[%emt 0:00:15]} e6 {[%emt 0:01:26]} 7. O-O {[%emt 0:03:09]} Be7 {[%emt 0:00:32]} 8. Kh1 {[%emt 0:00:20]} O-O {[%emt 0:00:52]} 9. f4 {[%emt 0:00:38]} Nxe4 {[%emt 0:11:15]} 10. Nxc6 {[%emt 0:02:25]} bxc6 {[%emt 0:00:21]} 11. Nxe4 {[%emt 0:00:05]} d5 {[%emt 0:00:45]} 12. Bd3 {[%emt 0:00:06]} dxe4 {[%emt 0:00:49]} 13. Bxe4 {[%emt 0:00:09]} Ba6 {[%emt 0:05:58]} 14. Re1 {[%emt 0:00:13]} Qxd1 {[%emt 0:00:38]} 15. Rxd1 {[%emt 0:00:09]} Rad8 {[%emt 0:00:14]} 16. Be3 {[%emt 0:00:10]} c5 {[%emt 0:01:12]} 17. b3 {[%emt 0:00:30]} f5 {[%emt 0:00:14]} 18. Bf3 {[%emt 0:00:20]} Kf7 {[%emt 0:00:26]} 19. Kg1 {[%emt 0:00:16]} Bf6 {[%emt 0:01:47]} 20. Rxd8 {[%emt 0:01:18]} Rxd8 {[%emt 0:00:27]} 21. Rd1 {[%emt 0:00:04]} Bd4 {[%emt 0:00:58]} 22. Bxd4 {[%emt 0:00:06]} Rxd4 {[%emt 0:00:55]} 23. Rxd4 {[%emt 0:15:48]} cxd4 {[%emt 0:00:18]} 24. a4 {[%emt 0:00:03]} Kf6 {[%emt 0:00:20]} 25. b4 {[%emt 0:00:51]} Bc4 {[%emt 0:00:30]} 26. Kf2 {[%emt 0:00:39]} h6 {[%emt 0:01:21]} 27. Be2 {[%emt 0:01:33]} Bd5 {[%emt 0:01:08]} 28. a5 {[%emt 0:00:22]} g5 {[%emt 0:00:22]} 29. b5 {[%emt 0:02:04]} g4 {[%emt 0:03:24]} 30. g3 {[%emt 0:05:56]} Ke7 {[%emt 0:00:13]} 31. Ke1 {[%emt 0:05:18]} Kd6 {[%emt 0:00:53]} 32. Kd2 {[%emt 0:00:12]} Kc5 {[%emt 0:00:32]} 33. c3 {[%emt 0:00:23]} dxc3+ {[%emt 0:09:33]} 34. Kxc3 {[%emt 0:00:09]} Ba2 {[%emt 0:00:39]} 35. Bd3 {[%emt 0:05:02]} Bd5 {[%emt 0:05:26]} 36. Bf1 {[%emt 0:17:22]} Ba2 {[%emt 0:00:33]} 37. Be2 {[%emt 0:05:43]} 1/2-1/2

[Event "76th Montenegro Championship 2024"]
[Site "Podgorica"]
[Date "2024.02.10"]
[Round "5.16"]
[White "Mosurovic, Milena"]
[Black "Pobor, Milo"]
[Result "0-1"]
[ECO "C00"]
[WhiteElo "1545"]
[BlackElo "2201"]
[Annotator "NA RC"]
[PlyCount "60"]
[EventDate "2024.02.06"]
[EventType "swiss"]
[EventCountry "MNE"]
[SourceTitle "playchess.com"]
[Source "ChessBase"]
[SourceQuality "1"]
[TimeControl "40/5400+30:1800+30"]

1. e4 {[%emt 0:00:02]} e6 {[%emt 0:00:19]} 2. d3 {[%emt 0:00:06]} d5 {[%emt 0:00:06]} 3. Nd2 {[%emt 0:00:05]} c5 {[%emt 0:00:09]} 4. Ngf3 {[%emt 0:00:25]} Nf6 {[%emt 0:00:15]} 5. g3 {[%emt 0:00:12]} Nc6 {[%emt 0:00:07]} 6. Bg2 {[%emt 0:00:19]} Be7 {[%emt 0:00:06]} 7. O-O {[%emt 0:00:13]} O-O {[%emt 0:00:04]} 8. Re1 {[%emt 0:00:39]} b5 {[%emt 0:01:43]} 9. c3 {[%emt 0:08:26]} b4 {[%emt 0:02:21]} 10. h4 {[%emt 0:02:59]} Ba6 {[%emt 0:03:10]} 11. Nf1 {[%emt 0:03:41]} dxe4 {[%emt 0:09:45]} 12. dxe4 {[%emt 0:00:22]} Qxd1 {[%emt 0:00:07]} 13. Rxd1 {[%emt 0:00:05]} bxc3 {[%emt 0:00:07]} 14. e5 {[%emt 0:22:11]} Nd5 {[%emt 0:02:23]} 15. bxc3 {[%emt 0:04:15]} Nxc3 {[%emt 0:00:40]} 16. Rd2 {[%emt 0:01:54]} Rad8 {[%emt 0:02:47]} 17. Bb2 {[%emt 0:08:01]} Ne2+ {[%emt 0:01:11]} 18. Kh1 {[%emt 0:00:24]} Rxd2 {[%emt 0:00:23]} 19. N1xd2 {[%emt 0:00:07]} Nb4 {[%emt 0:06:43]} 20. Bf1 {[%emt 0:04:50]} Rb8 {[%emt 0:02:59]} 21. Nb3 {[%emt 0:04:29]} g6 {[%emt 0:08:05]} 22. Nfd2 {[%emt 0:02:31]} Nc2 {[%emt 0:05:50]} 23. Bxe2 {[%emt 0:06:00]} Bxe2 {[%emt 0:01:03]} 24. Rc1 {[%emt 0:01:36]} Bd3 {[%emt 0:00:24]} 25. Bc3 {[%emt 0:08:49]} Rc8 {[%emt 0:01:09]} 26. Na1 {[%emt 0:01:35]} Nxa1 {[%emt 0:00:53]} 27. Bxa1 {[%emt 0:00:07]} c4 {[%emt 0:00:18]} 28. Kg2 {[%emt 0:01:24]} Ba3 {[%emt 0:00:13]} 29. Rd1 {[%emt 0:00:29]} c3 {[%emt 0:00:25]} 30. Nb3 {[%emt 0:01:58]} Bc2 {[%emt 0:00:21]} 0-1

[Event "76th Montenegro Championship 2024"]
[Site "Podgorica"]
[Date "2024.02.10"]
[Round "5.17"]
[White "Kalezic, Blazo"]
[Black "Kadic, Branislav"]
[Result "1-0"]
[ECO "B12"]
[WhiteElo "2407"]
[BlackElo "1970"]
[Annotator "TA"]
[PlyCount "59"]
[EventDate "2024.02.06"]
[EventType "swiss"]
[EventCountry "MNE"]
[SourceTitle "playchess.com"]
[Source "ChessBase"]
[SourceQuality "1"]
[TimeControl "40/5400+30:1800+30"]

{[%evp 13,59,0,21,0,0,1,17,-20,100,50,84,14,27,18,25,13,76,65,95,68,71,85,201,164,121,102,113,113,282,148,174,162,200,200,216,203,316,304,719,724,708,698,983,801,772,764,723,693]} 1. e4 {[%emt 0:00:01]} c6 {[%emt 0:01:14]} 2. d4 {[%emt 0:00:26]} d5 {[%emt 0:00:08]} 3. e5 {[%emt 0:00:30]} Bf5 {[%emt 0:00:18]} 4. Nc3 {[%emt 0:00:13]} e6 {[%emt 0:00:18]} 5. g4 {[%emt 0:00:20]} Bg6 {[%emt 0:00:23]} 6. Nge2 {[%emt 0:00:11]} Be7 {[%emt 0:03:00]} 7. Be3 {[%emt 0:01:05]} Nd7 {[%emt 0:08:59] [#]} 8. h4 $1 {[%emt 0:02:48]} Bxh4 {[%emt 0:12:26]} 9. Qd2 {[%emt 0:00:13] Strongly threatening g5.} Be7 {[%emt 0:01:16]} 10. Nf4 {[%emt 0:00:13] The position is equal.} (10. O-O-O $5) 10... Nf8 {[%emt 0:01:08]} (10... Bb4 $11) 11. Nxg6 {[%emt 0:01:08]} ({Better is} 11. O-O-O $16) 11... fxg6 {[%emt 0:07:33]} 12. Bd3 {[%emt 0:03:35]} (12. O-O-O $16) 12... Bb4 $11 {[%emt 0:03:07]} 13. a3 {[%emt 0:00:42][%mdl 1024] White has compensation.} Qa5 {[%emt 0:01:40]} 14. Ke2 {[%emt 0:00:46]} ({Of course not} 14. axb4 Qxa1+ 15. Nd1 a5 $15) 14... Be7 {[%emt 0:03:00]} (14... Bxc3 $1 $11 15. Qxc3 (15. bxc3 O-O-O $14) 15... Qxc3 16. bxc3 Ne7) 15. f4 $36 {[%emt 0:01:54][%mdl 2048] White is more active.} O-O-O {[%emt 0:02:57]} 16. b4 {[%emt 0:01:01]} Qc7 {[%emt 0:00:11]} 17. g5 {[%emt 0:04:23]} Re8 {[%emt 0:02:16]} (17... Kb8 $16) 18. Rab1 {[%emt 0:01:43] b5 would now be deadly.} b6 {[%emt 0:05:38]} 19. Rb3 {[%emt 0:03:32] White has more active pieces.} Kb7 {[%emt 0:03:12]} 20. a4 {[%emt 0:02:34][%cal Ba3a4,Ba4a5][%mdl 32] And now b5 would win.} h5 $2 {[%emt 0:02:14] This move loses the game for Black.} (20... Kb8 $16 {was necessary.} 21. Na2 Qb7) 21. Kf2 {[%emt 0:00:34]} (21. b5 $18 c5 22. dxc5 Bxc5 23. Bxc5 Qxc5 24. a5) 21... h4 {[%emt 0:05:22]} 22. Kg2 {[%emt 0:00:28]} Nd7 {[%emt 0:01:55]} 23. Bxg6 {[%emt 0:01:07]} Rf8 {[%emt 0:00:16]} 24. Bd3 {[%emt 0:01:33]} Bd8 {[%emt 0:00:32]} (24... h3+ {was called for.} 25. Rxh3 Rxh3) 25. a5 $18 {[%emt 0:00:41]} b5 $2 {[%emt 0:01:40] [#]} (25... Ne7 26. axb6 Nxb6) 26. Nxb5 $1 {[%emt 0:00:37][%mdl 512] White is clearly winning.} cxb5 {[%emt 0:01:14]} 27. Rc3 $1 {[%emt 0:00:09]} ({Not} 27. Bxb5 Nb8 $14 (27... Ne7 $2 28. Rc3 $18)) 27... Qxc3 {[%emt 0:03:33]} 28. a6+ {[%emt 0:00:15]} Kxa6 {[%emt 0:05:10]} 29. Qxc3 {[%emt 0:00:10]} Kb7 {[%emt 0:01:50] Repels Qc6+} 30. Bxb5 {[%emt 0:00:26] Weighted Error Value: White=0.24 (precise) /Black=0.50.  Loses game:     	---       	Black=1      Mistake:       	White=3     	Black=5      Inaccurate:     	White=1     	Black=2      OK:         	White=8     	Black=6      Brilliant:      	White=1     	---} 1-0

[Event "76th Montenegro Championship 2024"]
[Site "Podgorica"]
[Date "2024.02.10"]
[Round "5.18"]
[White "Cadjenovic, Dragan"]
[Black "Nenezic, Danilo"]
[Result "0-1"]
[ECO "B92"]
[WhiteElo "1809"]
[BlackElo "2086"]
[Annotator "NA RC"]
[PlyCount "49"]
[EventDate "2024.02.06"]
[EventType "swiss"]
[EventCountry "MNE"]
[SourceTitle "playchess.com"]
[Source "ChessBase"]
[SourceQuality "1"]
[TimeControl "40/5400+30:1800+30"]

1. e4 {[%emt 0:01:12]} c5 {[%emt 0:00:17]} 2. Nf3 {[%emt 0:00:14]} d6 {[%emt 0:01:22]} 3. d4 {[%emt 0:00:22]} cxd4 {[%emt 0:00:09]} 4. Nxd4 {[%emt 0:00:16]} Nf6 {[%emt 0:00:09]} 5. Nc3 {[%emt 0:00:20]} a6 {[%emt 0:00:40]} 6. Be2 {[%emt 0:02:33]} e5 {[%emt 0:03:33]} 7. Nb3 {[%emt 0:00:53]} Be7 {[%emt 0:01:20]} 8. Bg5 {[%emt 0:03:41]} Be6 {[%emt 0:01:11]} 9. Qd2 {[%emt 0:01:23]} Nbd7 {[%emt 0:01:00]} 10. Rd1 {[%emt 0:03:31]} O-O {[%emt 0:02:08]} 11. O-O {[%emt 0:00:53]} b5 {[%emt 0:01:30]} 12. a3 {[%emt 0:01:36]} Qc7 {[%emt 0:00:48]} 13. Kh1 {[%emt 0:09:12]} Rfd8 {[%emt 0:03:48]} 14. Bd3 {[%emt 0:11:56]} Nb6 {[%emt 0:05:09]} 15. Nc1 {[%emt 0:08:18]} d5 {[%emt 0:25:25]} 16. Bxf6 {[%emt 0:07:43]} Bxf6 {[%emt 0:00:18]} 17. exd5 {[%emt 0:01:30]} Nxd5 {[%emt 0:01:19]} 18. Ne4 {[%emt 0:01:58]} h6 {[%emt 0:03:58]} 19. Nxf6+ {[%emt 0:02:36]} Nxf6 {[%emt 0:00:33]} 20. Qe2 {[%emt 0:09:39]} Re8 {[%emt 0:01:40]} 21. Rfe1 {[%emt 0:02:05]} e4 {[%emt 0:04:17]} 22. Bxe4 {[%emt 0:00:48]} Bg4 {[%emt 0:00:19]} 23. f3 {[%emt 0:07:36]} Rxe4 {[%emt 0:00:11]} 24. Qxe4 {[%emt 0:00:01]} Nxe4 {[%emt 0:00:18]} 25. Rxe4 {[%emt 0:00:32]} 0-1

[Event "76th Montenegro Championship 2024"]
[Site "Podgorica"]
[Date "2024.02.11"]
[Round "6.1"]
[White "Petrov, Nikita"]
[Black "Djukic, Nikola"]
[Result "1/2-1/2"]
[ECO "B31"]
[WhiteElo "2563"]
[BlackElo "2529"]
[Annotator "RC"]
[PlyCount "27"]
[EventDate "2024.02.06"]
[EventType "swiss"]
[EventCountry "MNE"]
[SourceTitle "playchess.com"]
[Source "ChessBase"]
[SourceQuality "1"]
[TimeControl "40/5400+30:1800+30"]

1. e4 {[%emt 0:00:03]} c5 {[%emt 0:11:39]} 2. Nf3 {[%emt 0:00:16]} Nc6 {[%emt 0:02:59]} 3. Bb5 {[%emt 0:00:30]} g6 {[%emt 0:00:07]} 4. O-O {[%emt 0:01:10]} Bg7 {[%emt 0:00:05]} 5. d3 {[%emt 0:01:25]} e5 {[%emt 0:01:56]} 6. a3 {[%emt 0:01:02]} Nge7 {[%emt 0:00:30]} 7. b4 {[%emt 0:00:26]} cxb4 {[%emt 0:05:41]} 8. axb4 {[%emt 0:00:55]} O-O {[%emt 0:00:07]} 9. Nbd2 {[%emt 0:33:05]} d5 {[%emt 0:12:26]} 10. c3 {[%emt 0:09:24]} Qc7 {[%emt 0:11:52]} 11. Ba4 {[%emt 0:02:51]} Nd8 {[%emt 0:08:45]} 12. Bb2 {[%emt 0:03:49]} Ne6 {[%emt 0:01:23]} 13. g3 {[%emt 0:00:09]} b6 {[%emt 0:03:46]} 14. Bb3 {[%emt 0:01:22]} 1/2-1/2

[Event "76th Montenegro Championship 2024"]
[Site "Podgorica"]
[Date "2024.02.11"]
[Round "6.2"]
[White "Tomic, Aleksandar"]
[Black "Kadric, Denis"]
[Result "1/2-1/2"]
[ECO "B22"]
[WhiteElo "2398"]
[BlackElo "2584"]
[Annotator "RC"]
[PlyCount "41"]
[EventDate "2024.02.06"]
[EventType "swiss"]
[EventCountry "MNE"]
[SourceTitle "playchess.com"]
[Source "ChessBase"]
[SourceQuality "1"]
[TimeControl "40/5400+30:1800+30"]

1. e4 {[%emt 0:04:27]} c5 {[%emt 0:01:08]} 2. c3 {[%emt 0:04:06]} Nf6 {[%emt 0:02:16]} 3. e5 {[%emt 0:00:42]} Nd5 {[%emt 0:00:03]} 4. d4 {[%emt 0:00:12]} cxd4 {[%emt 0:00:12]} 5. Nf3 {[%emt 0:01:02]} Nc6 {[%emt 0:00:39]} 6. Bc4 {[%emt 0:05:52]} e6 {[%emt 0:01:23]} 7. cxd4 {[%emt 0:01:27]} d6 {[%emt 0:00:03]} 8. O-O {[%emt 0:03:11]} Be7 {[%emt 0:00:04]} 9. a3 {[%emt 0:02:23]} O-O {[%emt 0:00:58]} 10. Qe2 {[%emt 0:01:19]} Qb6 {[%emt 0:12:53]} 11. Rd1 {[%emt 0:28:42]} Na5 {[%emt 0:04:08]} 12. Bxd5 {[%emt 0:15:49]} exd5 {[%emt 0:00:32]} 13. Nc3 {[%emt 0:02:25]} Qc6 {[%emt 0:00:02]} 14. exd6 {[%emt 0:11:45]} Bxd6 {[%emt 0:01:24]} 15. Ne5 {[%emt 0:01:30]} Bxe5 {[%emt 0:08:11]} 16. dxe5 {[%emt 0:00:15]} Be6 {[%emt 0:03:18]} 17. Nb5 {[%emt 0:08:58]} Qa6 {[%emt 0:18:16]} 18. Qd3 {[%emt 0:00:17]} Rac8 {[%emt 0:13:06]} 19. Nd4 {[%emt 0:01:38]} Qxd3 {[%emt 0:19:07]} 20. Rxd3 {[%emt 0:00:01]} Rc4 {[%emt 0:00:03]} 21. Be3 {[%emt 0:00:47]} 1/2-1/2

[Event "76th Montenegro Championship 2024"]
[Site "Podgorica"]
[Date "2024.02.11"]
[Round "6.3"]
[White "Draskovic, Luka"]
[Black "Ivanovic, Bozidar"]
[Result "1-0"]
[ECO "A30"]
[WhiteElo "2481"]
[BlackElo "2403"]
[Annotator "TA"]
[PlyCount "89"]
[EventDate "2024.02.06"]
[EventType "swiss"]
[EventCountry "MNE"]
[SourceTitle "playchess.com"]
[Source "ChessBase"]
[SourceQuality "1"]
[TimeControl "40/5400+30:1800+30"]

{[%evp 16,89,10,17,20,-6,17,0,0,0,53,19,100,88,102,97,92,93,95,58,57,43,39,39,54,39,41,45,53,38,36,32,85,45,47,44,72,78,91,85,97,91,100,102,124,124,123,117,166,133,123,117,151,82,173,135,140,132,173,156,771,696,765,741,6409,6199,29971,11968,5601,1359,29957,3017,29968,29954,6079,5921]} 1. Nf3 {[%emt 0:00:29]} Nf6 {[%emt 0:00:29]} 2. c4 {[%emt 0:01:28]} e6 {[%emt 0:00:28]} 3. g3 {[%emt 0:00:49]} b6 {[%emt 0:00:15]} 4. Bg2 {[%emt 0:01:45]} Bb7 {[%emt 0:00:19]} 5. O-O {[%emt 0:02:46]} Be7 {[%emt 0:02:02]} 6. b3 {[%emt 0:06:32]} O-O {[%emt 0:02:15]} 7. Bb2 {[%emt 0:00:12]} c5 {[%emt 0:20:52]} 8. d4 {[%emt 0:01:04]} cxd4 {[%emt 0:01:47]} 9. Qxd4 {[%emt 0:01:09]} Nc6 {[%emt 0:02:01]} 10. Qd2 {[%emt 0:04:21]} Ne4 {[%emt 0:09:46]} 11. Qc1 {[%emt 0:06:55]} d5 {[%emt 0:04:54] The position is equal.} 12. Rd1 {[%emt 0:03:20]} Bf6 {[%emt 0:14:54]} ({Black should try} 12... f5 $11) 13. Nc3 {[%emt 0:04:29]} Qe7 {[%emt 0:00:59]} (13... Nxc3 $11 14. Bxc3 Rc8) 14. cxd5 $16 {[%emt 0:06:47]} Nxc3 {[%emt 0:00:14]} 15. Bxc3 {[%emt 0:00:20]} exd5 {[%emt 0:00:08]} 16. Bxf6 {[%emt 0:01:03]} Qxf6 {[%emt 0:00:09]} 17. e3 {[%emt 0:03:27]} Rfd8 {[%emt 0:07:14]} 18. Nd4 {[%emt 0:06:40]} Ne5 {[%emt 0:00:17]} 19. Qd2 {[%emt 0:01:44]} h5 {[%emt 0:00:16]} 20. h3 {[%emt 0:02:29]} Rac8 {[%emt 0:06:56]} 21. Rac1 {[%emt 0:02:48]} Rc5 {[%emt 0:01:47]} 22. Rc2 {[%emt 0:04:10]} Rdc8 {[%emt 0:03:17]} 23. Rdc1 {[%emt 0:05:04]} Qd8 {[%emt 0:05:27]} (23... a5 $14) 24. b4 {[%emt 0:09:57]} Rxc2 {[%emt 0:01:35]} 25. Rxc2 {[%emt 0:00:05]} Rxc2 {[%emt 0:01:20]} 26. Qxc2 {[%emt 0:00:08]} g6 {[%emt 0:07:16]} 27. Qc3 {[%emt 0:06:02]} Qd7 {[%emt 0:01:34]} 28. Ne2 {[%emt 0:01:38]} Qd6 {[%emt 0:00:22]} 29. Nf4 {[%emt 0:01:09]} Nd7 {[%emt 0:01:26]} 30. Qd4 {[%emt 0:01:14] White is more active.} Nf6 {[%emt 0:00:55]} 31. e4 {[%emt 0:00:40][%cal Be3e4,Be4d5][%mdl 32] [#] Threatens to win with e5.} Qc6 {[%emt 0:01:34]} (31... Nd7 $16 {might work better.}) 32. exd5 {[%emt 0:03:50]} Qd6 {[%emt 0:00:02]} 33. a4 $36 {[%emt 0:00:41][%mdl 2048] White has strong initiative.} Nd7 {[%emt 0:02:01]} 34. a5 {[%emt 0:00:50]} ({Better is} 34. Nd3) 34... Ne5 {[%emt 0:00:38]} (34... Ba6 $16) 35. axb6 {[%emt 0:01:23]} axb6 {[%emt 0:00:03]} 36. Ne2 {[%emt 0:02:30]} Bc8 {[%emt 0:00:56][%cal Oc8h3]} 37. Nc3 {[%emt 0:04:07] [#] Hoping for Ne4.} Bxh3 $2 {[%emt 0:01:10] This costs Black the game.} (37... Qf6 $16 38. Kh1 Bf5) 38. f4 $18 {[%emt 0:01:45]} Nc6 {[%emt 0:00:53]} 39. Qxb6 {[%emt 0:00:36]} (39. dxc6 Qxd4+ 40. Kh2 Bxg2 (40... Qxc3 $2 41. Bxh3 Qxc6 42. g4 $19) 41. Kxg2 Qd2+ (41... Qxc3 {is a self mate.} 42. b5 Qc5 43. Kf3 Qxb5 44. c7 Qc6+ 45. Ke3 Qxc7 46. Ke2 Qc2+ 47. Ke3 f5 48. Kd4 Kf7 49. Ke3 Ke7 50. Kd4 Qb3 51. g4 hxg4 52. Ke5 Qe3+ 53. Kd5 Qe4#) 42. Kh1 Qxc3 43. Kg2 Qxc6+ 44. Kf2 Qc3 (44... Qc2+ 45. Ke3 f5 46. Kd4 Kf7 47. Kd5 Ke7 48. Kd4 Qb3 49. b5 Kf7 50. g4 hxg4 51. Ke5 Qb4 52. Kd5 Qc5#) 45. Kg2 Qe1 (45... Qxb4 {leads to mate.} 46. Kh2 Qd2+ 47. Kg1 b5 48. Kh1 b4 49. f5 b3 50. fxg6 b2 51. gxf7+ Kxf7 52. Kg1 b1=Q#) 46. Kf3 Qd2 (46... Qxb4 47. Ke3 Qc3+ 48. Kf2 b5 49. Ke2 b4 50. Kf2 b3 51. f5 b2 52. fxg6 Qd2+ 53. Kf3 b1=Q 54. gxf7+ Kxf7 55. g4 Qbd3#) 47. Ke4 f5+ (47... Qxb4+ 48. Ke3 f5 49. Ke2 Qc3 50. Kd1 Qxg3 51. Ke2 h4 52. Kd2 h3 53. Ke2 h2 54. Kd2 h1=Q 55. Kc2 Qhh2+ 56. Kd1 Qgg1#) 48. Kf3 b5 (48... Qxb4 49. Ke2 Qc3 50. Kd1 b5 51. Ke2 b4 52. Kf2 b3 53. Kg2 b2 54. Kh3 b1=Q 55. Kh2 Qcc2+ 56. Kh3 Qh1#) 49. g4 hxg4+ (49... Qxb4 50. gxh5 Qe4+ 51. Kf2 gxh5 52. Kf1 h4 53. Kf2 h3 54. Kf1 h2 55. Kf2 h1=Q 56. Kg3 Qeg2#) 50. Kg3 Kh7 (50... Qxb4 51. Kg2 Qd2+ 52. Kg3 Kh7 53. Kh4 Qe1+ 54. Kg5 Qe7#) 51. Kh4 Qe1+ 52. Kg5 Qe7#) 39... Bxg2 {[%emt 0:00:38]} 40. Kxg2 {[%emt 0:00:00]} Qxb4 {[%emt 0:00:00]} 41. Qxc6 {[%emt 0:00:19]} Qb2+ {[%emt 0:00:44]} 42. Kf3 {[%emt 0:00:13] White threatens d6 and mate.} h4 {[%emt 0:00:15]} 43. gxh4 {[%emt 0:00:41] d6 would kill now.} Qh2 {[%emt 0:00:09]} 44. Qe8+ {[%emt 0:00:27]} Kg7 {[%emt 0:02:08]} 45. Qe5+ {[%emt 0:00:07] Weighted Error Value: White=0.13 (very precise) /Black=0.80.  Loses game:     	---       	Black=1      Mistake:       	White=1     	Black=5      Inaccurate:     	White=4     	Black=2      OK:         	White=8     	Black=10     Best:        	White=2     	---} 1-0

[Event "76th Montenegro Championship 2024"]
[Site "Podgorica"]
[Date "2024.02.11"]
[Round "6.4"]
[White "Smirnov, Artem"]
[Black "Skvortsov, Andrei"]
[Result "1-0"]
[ECO "D37"]
[WhiteElo "2406"]
[BlackElo "2307"]
[Annotator "RC"]
[PlyCount "113"]
[EventDate "2024.02.06"]
[EventType "swiss"]
[EventCountry "MNE"]
[SourceTitle "playchess.com"]
[Source "ChessBase"]
[SourceQuality "1"]
[TimeControl "40/5400+30:1800+30"]

1. d4 {[%emt 0:00:07]} d5 {[%emt 0:00:39]} 2. c4 {[%emt 0:00:07]} e6 {[%emt 0:01:17]} 3. Nc3 {[%emt 0:00:08]} a6 {[%emt 0:01:14]} 4. cxd5 {[%emt 0:03:10]} exd5 {[%emt 0:00:11]} 5. Nf3 {[%emt 0:00:41]} Be7 {[%emt 0:01:51]} 6. Bf4 {[%emt 0:04:05]} Nf6 {[%emt 0:01:58]} 7. e3 {[%emt 0:03:58]} O-O {[%emt 0:02:37]} 8. Qc2 {[%emt 0:20:54]} Nh5 {[%emt 0:06:11]} 9. Be5 {[%emt 0:12:58]} Nc6 {[%emt 0:00:18]} 10. Bg3 {[%emt 0:07:26]} g6 {[%emt 0:01:46]} 11. a3 {[%emt 0:01:11]} Re8 {[%emt 0:05:21]} 12. Be2 {[%emt 0:01:28]} Bf6 {[%emt 0:06:49]} 13. O-O {[%emt 0:02:42]} Bf5 {[%emt 0:04:44]} 14. Qb3 {[%emt 0:05:35]} Nxg3 {[%emt 0:00:05]} 15. hxg3 {[%emt 0:00:04]} Ne7 {[%emt 0:02:38]} 16. Qxb7 {[%emt 0:06:05]} Rb8 {[%emt 0:00:03]} 17. Qxa6 {[%emt 0:03:09]} Rb6 {[%emt 0:00:02]} 18. Qa4 {[%emt 0:03:50]} Rxb2 {[%emt 0:00:04]} 19. Rfc1 {[%emt 0:01:16]} c6 {[%emt 0:08:10]} 20. Qd1 {[%emt 0:01:01]} Qa5 {[%emt 0:00:52]} 21. Bd3 {[%emt 0:07:21]} Reb8 {[%emt 0:03:40]} 22. Bxf5 {[%emt 0:03:00]} Nxf5 {[%emt 0:03:33]} 23. Na4 {[%emt 0:00:14]} R2b5 {[%emt 0:01:13]} 24. Rxc6 {[%emt 0:03:57]} Be7 {[%emt 0:00:03]} 25. Ne5 {[%emt 0:04:25]} Qa8 {[%emt 0:04:23]} 26. Rcc1 {[%emt 0:01:14]} R8b7 {[%emt 0:03:09]} 27. Nc3 {[%emt 0:01:02]} Ra5 {[%emt 0:00:28]} 28. g4 {[%emt 0:01:46]} Nd6 {[%emt 0:01:04]} 29. Nc6 {[%emt 0:00:51]} Rxa3 {[%emt 0:00:05]} 30. Nxd5 {[%emt 0:00:49]} Bg5 {[%emt 0:00:28]} 31. Ne5 {[%emt 0:00:46]} Rxa1 {[%emt 0:01:08]} 32. Rxa1 {[%emt 0:00:01]} Qc8 {[%emt 0:00:07]} 33. Qa4 {[%emt 0:00:54]} Qe6 {[%emt 0:02:39]} 34. Qc6 {[%emt 0:00:24]} Rb8 {[%emt 0:01:54]} 35. Ra8 {[%emt 0:00:43]} Rxa8 36. Qxa8+ {[%emt 0:00:02]} Kg7 {[%emt 0:00:23]} 37. Qc6 {[%emt 0:00:41]} f6 {[%emt 0:01:47]} 38. Nf3 {[%emt 0:00:30]} Kh6 {[%emt 0:00:43]} 39. Nc7 {[%emt 0:00:43]} Qe7 {[%emt 0:00:30]} 40. Nd5 {[%emt 0:00:00]} Qd8 {[%emt 0:00:00]} 41. Qc7 {[%emt 0:03:23]} Qxc7 {[%emt 0:00:59]} 42. Nxc7 {[%emt 0:00:06]} f5 {[%emt 0:00:17]} 43. Ne6 {[%emt 0:02:13]} Be7 {[%emt 0:00:06]} 44. g5+ {[%emt 0:08:30]} Kh5 {[%emt 0:00:01]} 45. g3 {[%emt 0:02:30]} Ne4 {[%emt 0:03:43]} 46. Nf4+ {[%emt 0:02:59]} Kg4 {[%emt 0:00:03]} 47. Kg2 {[%emt 0:00:09]} Ba3 {[%emt 0:01:40]} 48. Ne6 {[%emt 0:07:48]} Kh5 {[%emt 0:00:33]} 49. Nf4+ {[%emt 0:02:56]} Kg4 {[%emt 0:00:02]} 50. Nd5 {[%emt 0:00:06]} Kh5 {[%emt 0:00:19]} 51. Nf6+ {[%emt 0:01:59]} Nxf6 {[%emt 0:00:05]} 52. gxf6 {[%emt 0:00:03]} g5 {[%emt 0:00:33]} 53. Ne5 {[%emt 0:01:34]} Kh6 {[%emt 0:01:39]} 54. Kf3 {[%emt 0:01:57]} Bb4 {[%emt 0:00:38]} 55. g4 {[%emt 0:00:51]} fxg4+ {[%emt 0:00:24]} 56. Kxg4 {[%emt 0:00:05]} Be1 {[%emt 0:00:12]} 57. Kf5 {[%emt 0:00:58]} 1-0